bitfinex/quotes_ETHUSD_20210701
["timestamp","ask_amount","ask_price","bid_price","bid_amount"]
[1625167012260,4.3974,2103.1,2102.1,0.15]
[1625167012453,6.4254,2103.1,2102.1,0.1]
[1625167012951,4.3974,2103.1,2102.1,0.1]
[1625167013053,0.04,2103.0,2102.1,0.1]
[1625167014335,0.04,2103.0,2101.7,12.14163]
[1625167014534,0.04,2103.0,2101.7,67.4179236]
[1625167015133,2.022,2103.1,2101.7,67.4179236]
[1625167015334,2.118,2103.2,2101.7,67.4179236]
[1625167015585,7.13186,2102.9,2101.7,67.4179236]
[1625167015771,12.14186,2102.9,2101.7,67.4179236]
[1625167016027,21.66916,2102.9,2101.5,9.65667]
[1625167016128,15.33979096,2102.8,2101.5,9.50667]
[1625167016228,15.33979096,2102.8,2101.0,0.15]
[1625167016229,10.0,2102.7,2101.0,0.15]
[1625167016327,0.1528789,2102.6,2100.8,87.8904303]
[1625167016426,19.4065789,2102.6,2100.8,87.8904303]
[1625167016530,24.6165789,2102.6,2100.8,87.8904303]
[1625167016626,37.97673276,2102.6,2100.8,87.8904303]
[1625167016725,0.08,2102.5,2100.8,87.8904303]
[1625167016823,0.15075879,2102.4,2100.8,87.8904303]
[1625167017026,15.15075879,2102.4,2100.8,87.8904303]
[1625167017286,0.08,2102.3,2100.8,77.7486303]
[1625167017475,0.14,2102.2,2100.7,6.87]
[1625167017576,15.15131657,2102.2,2100.7,6.87]
[1625167017676,4.46626064,2102.1,2100.7,6.87]
[1625167017892,9.2866,2102.1,2100.7,6.87]
[1625167017996,11.2906,2102.1,2100.7,6.87]
[1625167018197,2.022,2102.0,2100.7,6.87]
[1625167018299,7.13546,2101.9,2100.7,6.87]
[1625167018396,7.23546,2101.9,2100.7,6.87]
[1625167018500,12.24546,2101.9,2100.7,6.87]
[1625167018596,12.24546,2101.9,2100.5,11.0225]
[1625167018698,12.14546,2101.9,2100.5,11.0225]
[1625167019149,12.14546,2101.9,2100.5,13.58092966]
[1625167019298,12.14546,2101.9,2100.5,18.59092966]
[1625167019903,12.14546,2101.9,2100.5,20.6722964]
[1625167020952,12.14546,2101.9,2100.5,20.5722964]
[1625167021310,2.052,2102.0,2100.6,0.15]
[1625167021454,4.2766,2102.1,2100.6,0.15]
[1625167021553,9.2866,2102.1,2100.6,0.15]
[1625167021657,2.046,2102.0,2100.6,0.15]
[1625167021755,2.046,2102.0,2100.5,2.55842966]
[1625167021913,0.25274855,2101.9,2100.5,0.94500858]
[1625167022008,0.2408903,2101.9,2100.6,15.0]
[1625167022107,0.2408903,2101.9,2100.7,2.57508166]
[1625167022334,1.73648437,2102.1,2101.3,11.33917]
[1625167022465,10.3144,2102.8,2101.5,3.46]
[1625167022615,24.88064,2103.3,2101.5,3.46]
[1625167022809,24.88064,2103.3,2101.6,0.15]
[1625167022810,34.97814,2103.3,2101.6,0.15]
[1625167022969,31.4123,2103.3,2101.6,0.15]
[1625167023066,10.3938,2103.3,2101.8,3.46]
[1625167023213,10.3938,2103.3,2101.9,0.15]
[1625167023315,10.3938,2103.3,2102.5,11.41172]
[1625167023416,10.9145,2103.6,2102.5,11.41172]
[1625167023514,10.9145,2103.6,2102.6,0.15]
[1625167023667,0.18,2103.5,2102.6,0.15]
[1625167023961,3.56496,2103.9,2102.6,2.98736328]
[1625167024312,3.564692,2103.8,2102.6,7.99736328]
[1625167024414,7.12946,2103.4,2102.6,7.99736328]
[1625167024844,0.2,2103.7,2102.6,7.99736328]
[1625167024949,3.56496,2103.9,2102.6,10.57244494]
[1625167025043,3.56496,2103.9,2102.6,18.57244494]
[1625167025446,3.56496,2103.9,2102.6,10.57244494]
[1625167025649,0.04,2103.8,2102.6,10.57244494]
[1625167025747,3.6045993,2103.8,2102.6,10.57244494]
[1625167025849,3.6045993,2103.8,2102.6,10.52244494]
[1625167025951,3.6045993,2103.8,2102.6,7.94736328]
[1625167026099,0.08,2103.7,2102.6,7.94736328]
[1625167026450,8.5745993,2103.8,2102.6,7.94736328]
[1625167026600,3.5645993,2103.8,2102.6,7.94736328]
[1625167026824,3.5645993,2103.8,2102.6,10.47244494]
[1625167027066,3.56496,2103.9,2102.6,18.47244494]
[1625167027271,8.57496,2103.9,2102.6,10.47244494]
[1625167027368,16.57496,2103.9,2102.6,7.89736328]
[1625167027520,16.57496,2103.9,2102.6,0.05]
[1625167027521,0.16,2103.8,2102.6,0.05]
[1625167027621,7.12956,2103.3,2102.6,0.05]
[1625167027776,11.62126,2103.3,2102.6,0.05]
[1625167028521,13.66726,2103.3,2102.6,0.05]
[1625167028819,13.66126,2103.3,2102.6,0.05]
[1625167029201,13.67326,2103.3,2102.6,0.05]
[1625167029353,11.62126,2103.3,2102.6,0.05]
[1625167029754,7.12956,2103.3,2102.6,0.05]
[1625167029856,7.1298831,2103.6,2102.6,0.05]
[1625167029957,9.50518,2103.7,2102.6,0.05]
[1625167029958,9.50518,2103.7,2102.6,5.74118166]
[1625167030055,10.65054,2104.0,2102.6,5.74118166]
[1625167030156,8.57454,2104.0,2102.6,5.74118166]
[1625167030255,8.57454,2104.0,2102.6,10.75118166]
[1625167030413,7.12798,2103.8,2102.6,13.40802022]
[1625167030556,7.12798,2103.8,2102.6,21.40802022]
[1625167030764,7.1281849,2104.0,2102.6,21.40802022]
[1625167030860,3.56404,2104.0,2102.6,21.40802022]
[1625167031395,8.57404,2104.0,2102.6,13.40802022]
[1625167031492,3.56404,2104.0,2102.6,13.40802022]
[1625167031592,8.57404,2104.0,2102.6,13.40802022]
[1625167032145,15.65104,2104.0,2102.7,9.50242]
[1625167032250,15.60104,2104.0,2102.7,9.50242]
[1625167032401,15.60104,2104.0,2102.8,0.15]
[1625167033147,10.59104,2104.0,2102.8,0.15]
[1625167033755,10.59104,2104.0,2102.8,7.27718]
[1625167033908,10.59104,2104.0,2102.8,12.28718]
[1625167034007,10.59104,2104.0,2102.8,14.94401856]
[1625167034708,10.59104,2104.0,2102.8,17.36201689]
[1625167035412,10.59104,2104.0,2102.8,14.94401856]
[1625167035873,10.59104,2104.0,2102.8,9.93401856]
[1625167035976,15.60104,2104.0,2102.8,9.93401856]
[1625167037034,15.60104,2104.0,2102.8,2.80683856]
[1625167037131,15.60104,2104.0,2102.8,7.81683856]
[1625167037234,15.60104,2104.0,2102.8,2.80683856]
[1625167037330,15.60104,2104.0,2102.8,7.81683856]
[1625167037532,10.59104,2104.0,2102.8,67.35686416]
[1625167037986,10.59104,2104.0,2102.8,7.81683856]
[1625167038127,25.60104,2104.0,2102.8,7.81683856]
[1625167038219,25.60104,2104.0,2102.8,5.16]
[1625167038317,0.14,2103.9,2102.8,5.16]
[1625167038467,0.14,2103.9,2102.8,0.15]
[1625167038567,0.06,2103.8,2102.8,5.16]
[1625167038819,0.06,2103.8,2102.8,0.15]
[1625167038922,0.06,2103.8,2102.8,5.16]
[1625167039018,0.06,2103.8,2102.8,0.15]
[1625167039123,2.124,2103.9,2102.8,0.15]
[1625167039274,7.12892,2103.5,2102.5,10.56606265]
[1625167039368,7.12892,2103.5,2102.5,15.72606265]
[1625167039724,2.064,2103.9,2102.5,15.72606265]
[1625167039822,2.064,2103.9,2102.5,26.38290121]
[1625167039971,3.46404,2104.0,2102.5,21.67236954]
[1625167040708,10.59161,2104.0,2102.9,7.12714]
[1625167040858,10.59161,2104.0,2103.0,0.15]
[1625167040958,0.12,2103.9,2103.0,4.9657]
[1625167041058,0.12,2103.9,2103.0,9.9757]
[1625167041207,8.47404,2104.0,2103.0,4.9657]
[1625167041309,3.46404,2104.0,2103.0,4.9657]
[1625167041408,10.23954,2104.0,2103.0,4.9657]
[1625167041561,0.1,2103.9,2103.0,4.8157]
[1625167041959,2.26,2103.9,2103.0,4.8157]
[1625167042161,7.12884,2103.6,2102.4,9.50386]
[1625167042946,7.12884,2103.6,2102.4,41.3975911]
[1625167043195,12.13884,2103.6,2102.4,41.3975911]
[1625167044111,10.56804,2104.0,2102.5,0.15]
[1625167044203,10.56804,2104.0,2102.5,4.62]
[1625167044403,8.47404,2104.0,2102.5,7.27683856]
[1625167044502,8.47404,2104.0,2102.6,2.41799833]
[1625167044653,8.47404,2104.0,2102.7,0.15]
[1625167045440,15.60152,2104.0,2102.8,7.12748]
[1625167045538,15.60152,2104.0,2102.8,12.13748]
[1625167045693,15.60152,2104.0,2102.8,12.28748]
[1625167045839,10.59152,2104.0,2102.8,12.28748]
[1625167048234,10.59152,2104.0,2102.8,14.94431856]
[1625167048439,10.59152,2104.0,2102.8,34.56288746]
[1625167048690,48.9397,2104.2,2102.8,27.67040746]
[1625167048838,3.56404,2104.0,2102.8,27.67040746]
[1625167049187,3.56404,2104.0,2102.8,27.57040746]
[1625167049744,38.2895,2104.2,2102.8,38.03432245]
[1625167049898,28.0136,2104.2,2102.8,38.03432245]
[1625167050001,28.0136,2104.2,2102.9,0.08]
[1625167050193,21.1436,2104.2,2103.0,0.15]
[1625167050397,10.3566,2104.2,2103.0,4.8348]
[1625167050494,10.3566,2104.2,2103.0,7.49163856]
[1625167050796,10.891,2104.5,2103.1,2.46391499]
[1625167051044,10.891,2104.5,2103.2,0.15]
[1625167051447,10.891,2104.5,2103.5,7.12474]
[1625167051549,7.1256,2104.6,2103.5,16.08274]
[1625167051687,7.1256,2104.6,2103.6,0.15]
[1625167051988,10.2158,2104.7,2103.6,0.15]
[1625167052242,10.2158,2104.7,2103.7,2.46391499]
[1625167052340,10.2158,2104.7,2103.7,5.12075355]
[1625167052493,10.2158,2104.7,2103.7,5.27075355]
[1625167052593,10.2158,2104.7,2103.9,7.12416]
[1625167052691,14.5622173,2105.0,2103.9,7.12416]
[1625167052792,14.5622173,2105.0,2103.9,12.28416]
[1625167053043,3.5627173,2105.0,2103.9,12.28416]
[1625167054439,3.56269,2105.1,2103.9,20.28416]
[1625167054540,3.56269,2105.1,2103.9,15.81683856]
[1625167054637,34.0912,2105.2,2103.9,10.28075355]
[1625167055087,23.9639,2105.2,2103.9,10.28075355]
[1625167055238,23.9639,2105.2,2103.9,18.28075355]
[1625167055542,23.9639,2105.2,2104.3,7.12249]
[1625167055690,13.049,2105.2,2104.3,4.2199]
[1625167055788,13.049,2105.2,2104.3,9.2299]
[1625167055888,6.179,2105.2,2104.3,9.2299]
[1625167056458,6.179,2105.2,2104.4,0.15]
[1625167057463,6.179,2105.2,2104.4,0.1]
[1625167057659,6.179,2105.2,2104.3,5.01]
[1625167057761,0.18,2105.1,2104.2,27.483]
[1625167058259,6.179,2105.2,2104.2,27.483]
[1625167058461,7.12377,2105.0,2104.2,27.483]
[1625167058544,7.12377,2105.0,2104.2,5.01]
[1625167058745,7.12377,2105.0,2104.1,7.12321]
[1625167059167,7.12377,2105.0,2103.9,0.15]
[1625167060415,7.12377,2105.0,2103.9,7.27403]
[1625167060789,0.04,2104.9,2103.9,7.27403]
[1625167061289,14.50848,2105.1,2103.9,7.27403]
[1625167061390,3.56228,2105.0,2103.9,7.27403]
[1625167061592,8.57228,2105.0,2103.9,7.27403]
[1625167062092,10.14648,2105.0,2103.9,7.27403]
[1625167062492,7.12456,2104.8,2103.9,12.28403]
[1625167062592,7.12456,2104.8,2103.9,7.27403]
[1625167062694,3.56228,2105.0,2103.9,12.28403]
[1625167063052,8.57228,2105.0,2103.9,12.28403]
[1625167064154,3.56228,2105.0,2103.9,12.28403]
[1625167064767,9.7409928,2105.2,2103.9,20.28403]
[1625167064768,6.179,2105.2,2103.9,20.28403]
[1625167064865,6.179,2105.2,2103.9,18.28075355]
[1625167065502,13.30228,2105.2,2104.2,9.49678]
[1625167065758,0.1,2105.1,2104.2,5.01]
[1625167065961,0.1,2105.1,2103.7,14.50887]
[1625167066055,0.1,2105.1,2103.7,113.79807]
[1625167066255,12.518,2105.2,2103.7,113.79807]
[1625167066362,16.0801069,2105.2,2103.7,14.50887]
[1625167066510,13.56211,2105.1,2103.7,14.50887]
[1625167066638,4.2673,2104.7,2103.6,9.49944]
[1625167066730,4.2673,2104.7,2103.1,19.19585355]
[1625167066731,4.2673,2104.7,2103.1,10.0751]
[1625167066732,15.0,2104.6,2103.1,10.0751]
[1625167066814,25.15,2104.6,2103.1,10.0751]
[1625167066976,3.56378,2104.4,2103.1,10.0751]
[1625167067059,8.57378,2104.4,2103.1,10.0751]
[1625167067159,3.56378,2104.2,2103.1,10.0751]
[1625167067265,8.43398,2104.2,2103.1,10.0751]
[1625167067464,13.44398,2104.2,2103.1,10.0751]
[1625167067466,3.56423,2104.1,2102.6,50.0132457]
[1625167067564,3.56423,2104.1,2102.6,57.1415957]
[1625167067565,7.12853,2103.5,2102.6,57.1415957]
[1625167067668,9.50446,2103.8,2102.5,9.9553]
[1625167067669,1.1525,2103.6,2102.5,9.9553]
[1625167067764,9.33355,2103.6,2102.5,109.2445]
[1625167067914,10.13755,2103.6,2102.5,99.2892]
[1625167068865,9.50536,2103.5,2102.5,99.2892]
[1625167068963,9.50536,2103.5,2102.5,104.2992]
[1625167069065,9.50536,2103.5,2102.5,5.01]
[1625167069266,9.50536,2103.5,2102.4,84.1335027]
[1625167069365,9.50536,2103.5,2102.4,92.1335027]
[1625167069519,5.52115,2103.6,2102.4,92.1335027]
[1625167069738,4.71715,2103.6,2102.4,92.1335027]
[1625167070487,11.84564,2103.6,2102.6,7.12859]
[1625167070692,11.84564,2103.6,2102.6,12.13859]
[1625167071043,4.71715,2103.6,2102.6,12.13859]
[1625167071145,4.71715,2103.6,2102.6,5.01]
[1625167071146,9.72715,2103.6,2102.6,5.01]
[1625167071289,9.72715,2103.6,2102.4,9.50478]
[1625167071393,9.72715,2103.6,2102.4,14.51478]
[1625167071489,0.1,2103.5,2102.4,14.51478]
[1625167071844,14.31345,2103.6,2102.4,14.51478]
[1625167072110,14.26345,2103.6,2102.4,14.51478]
[1625167072416,7.1295,2103.3,2102.4,14.51478]
[1625167073819,9.50599,2103.5,2102.4,22.51478]
[1625167073918,9.50599,2103.5,2102.4,20.80381856]
[1625167075012,14.51599,2103.5,2102.4,20.80381856]
[1625167076065,9.50599,2103.5,2102.4,93.53781176]
[1625167076166,9.50599,2103.5,2102.4,101.53781176]
[1625167076265,9.50599,2103.5,2102.4,104.00172675]
[1625167077962,10.6925353,2103.7,2102.5,0.12]
[1625167078159,10.6925353,2103.7,2102.4,105.42332675]
[1625167078360,10.6925353,2103.7,2102.5,2.65683856]
[1625167078463,3.5645653,2103.7,2102.5,2.65683856]
[1625167078563,3.5645653,2103.7,2102.5,7.66683856]
[1625167078862,3.5645653,2103.7,2102.5,10.13075355]
[1625167079266,7.12795,2103.6,2102.6,7.12798]
[1625167079611,7.12795,2103.6,2102.6,12.13798]
[1625167080213,7.12795,2103.6,2102.6,5.01]
[1625167080317,7.12795,2103.6,2102.5,11.16395355]
[1625167080420,7.12795,2103.6,2102.5,6.15395355]
[1625167080518,7.12795,2103.6,2102.5,11.16395355]
[1625167082862,9.50511,2104.0,2102.5,11.16395355]
[1625167082965,9.50511,2104.0,2102.6,0.15]
[1625167083124,5.63365,2104.3,2102.6,0.15]
[1625167083219,5.63365,2104.3,2102.6,0.27]
[1625167083365,3.56419,2103.7,2102.2,7.44291404]
[1625167083462,3.56419,2103.7,2102.3,3.72181554]
[1625167083613,0.13531463,2103.6,2102.3,3.72181554]
[1625167083710,6.84055718,2103.7,2101.9,10.7559]
[1625167083865,6.84055718,2103.7,2101.8,0.13916891]
[1625167083866,7.13095,2102.8,2101.7,7.13095]
[1625167084165,12.00315,2102.8,2101.7,31.7262922]
[1625167084324,3.56606,2102.7,2101.5,28.34012226]
[1625167084520,8.57606,2102.7,2101.5,0.02206478]
[1625167084618,3.56606,2102.7,2101.5,0.02206478]
[1625167084771,8.63606,2102.7,2101.5,0.02206478]
[1625167084917,3.56669,2102.4,2101.5,0.02206478]
[1625167085018,7.13319,2102.1,2101.5,0.02206478]
[1625167085115,10.49109,2102.1,2101.5,0.02206478]
[1625167085518,3.3579,2102.1,2101.5,0.02206478]
[1625167086709,3.5663137,2102.6,2101.5,0.02206478]
[1625167086913,7.13238,2102.3,2101.5,0.02206478]
[1625167087013,3.5663137,2102.6,2101.5,0.02206478]
[1625167087414,9.9512,2102.7,2101.5,0.02206478]
[1625167087562,13.07592,2102.9,2101.5,2.34328035]
[1625167087762,18.08592,2102.9,2101.5,2.34328035]
[1625167087868,14.51988,2102.9,2101.5,2.34328035]
[1625167087983,3.5658129,2103.0,2101.5,4.52351724]
[1625167088071,43.22219,2103.2,2101.5,9.53351724]
[1625167088167,7.13037,2103.0,2101.6,0.15]
[1625167088621,7.13037,2103.0,2101.7,4.50145246]
[1625167088819,7.13037,2103.0,2101.7,9.66145246]
[1625167089067,7.13037,2103.0,2101.7,17.66145246]
[1625167089282,7.13037,2103.0,2101.8,9.50637]
[1625167089423,7.02937,2103.0,2101.8,3.7786]
[1625167089529,12.03937,2103.0,2101.8,3.7786]
[1625167089625,12.03937,2103.0,2101.5,0.02206478]
[1625167089626,41.86884,2103.0,2101.5,0.02206478]
[1625167089727,8.2,2102.9,2101.5,0.02206478]
[1625167089878,3.56683,2102.4,2101.5,0.02206478]
[1625167089977,4.72393,2102.4,2101.5,0.02206478]
[1625167090072,12.87523,2102.4,2101.5,0.02206478]
[1625167090421,0.04,2102.3,2101.5,0.02206478]
[1625167091046,3.60694,2102.3,2101.5,0.02206478]
[1625167091145,7.13387,2102.0,2101.5,0.02206478]
[1625167094525,7.13387,2102.0,2100.8,22.80585]
[1625167095203,7.13387,2102.0,2100.8,25.12706557]
[1625167095359,3.56694,2102.3,2100.8,25.12706557]
[1625167095467,3.56694,2102.3,2100.9,2.18023689]
[1625167095613,8.57694,2102.3,2100.9,2.18023689]
[1625167095708,3.56694,2102.3,2100.9,2.18023689]
[1625167095808,8.57694,2102.3,2100.9,2.18023689]
[1625167095912,8.57694,2102.3,2100.9,4.50145246]
[1625167096013,8.57694,2102.3,2100.9,9.51145246]
[1625167096210,7.13411,2102.0,2100.9,16.64564246]
[1625167096410,7.13411,2102.0,2100.9,12.14419]
[1625167096762,0.2,2101.9,2100.9,12.14419]
[1625167096963,0.2,2101.9,2100.9,14.46540557]
[1625167097064,14.52225,2102.2,2100.9,14.46540557]
[1625167097165,14.52225,2102.2,2100.9,19.10010557]
[1625167097371,9.51225,2102.2,2100.9,19.10010557]
[1625167097489,31.2568,2102.4,2101.0,0.15]
[1625167097731,31.2568,2102.4,2101.0,0.19]
[1625167097826,31.2568,2102.4,2101.1,3.46]
[1625167097927,20.5218,2102.4,2101.1,8.11315552]
[1625167098081,20.5218,2102.4,2101.2,0.15]
[1625167098082,9.989,2102.4,2101.2,0.15]
[1625167098177,10.6226,2102.5,2101.2,0.15]
[1625167098477,10.855,2102.8,2101.3,2.30921522]
[1625167098478,20.5624,2102.8,2101.3,2.30921522]
[1625167098630,10.5796,2102.8,2101.7,2.0788]
[1625167098925,21.4904,2103.1,2101.7,2.0788]
[1625167099026,21.4904,2103.1,2101.7,6.73195552]
[1625167099131,21.4904,2103.1,2101.8,0.15]
[1625167099479,0.12,2103.0,2101.8,0.15]
[1625167099733,7.13107,2102.9,2102.0,7.13052]
[1625167099978,10.8645,2103.1,2102.0,12.29052]
[1625167100876,10.8645,2103.1,2102.0,7.28052]
[1625167100980,17.99472,2103.1,2102.0,7.28052]
[1625167101078,17.99472,2103.1,2102.0,0.15]
[1625167101179,23.00472,2103.1,2102.0,0.15]
[1625167101330,3.62572,2103.0,2102.0,0.15]
[1625167101961,7.13143,2102.7,2102.0,0.15]
[1625167104378,7.13143,2102.7,2101.8,14.4851503]
[1625167104763,3.5658597,2102.9,2101.8,18.6000503]
[1625167104863,15.8745,2103.1,2101.8,18.7500503]
[1625167105020,10.8645,2103.1,2101.8,21.92805552]
[1625167105117,34.10988,2103.4,2101.8,21.92805552]
[1625167105217,30.5447,2103.4,2101.8,121.21725552]
[1625167105313,30.5447,2103.4,2101.8,121.22637152]
[1625167105418,30.5447,2103.4,2101.9,0.01584096]
[1625167105515,30.5447,2103.4,2101.8,121.07637152]
[1625167105614,30.5447,2103.4,2102.0,0.15]
[1625167105862,30.5447,2103.4,2102.0,4.80315552]
[1625167105968,20.0565,2103.4,2102.0,9.81315552]
[1625167106064,20.0565,2103.4,2102.0,7.51039133]
[1625167106167,20.0565,2103.4,2102.0,15.51039133]
[1625167106518,10.1134,2103.4,2102.6,10.47449]
[1625167106670,3.56436,2103.9,2102.6,10.47449]
[1625167106819,2.082,2104.0,2102.7,2.5739403]
[1625167107070,6.87,2104.1,2102.7,7.5039403]
[1625167107166,6.87,2104.1,2102.7,2.4939403]
[1625167107917,6.87,2104.1,2103.0,1.6414]
[1625167107918,13.9974,2104.1,2103.0,1.6414]
[1625167108015,6.87,2104.1,2103.0,1.6414]
[1625167108121,6.87,2104.1,2103.1,3.3713]
[1625167108366,7.81929399,2104.1,2103.1,8.3813]
[1625167108474,7.81929399,2104.1,2102.8,9.50298]
[1625167108571,29.8,2103.9,2102.6,0.00827571]
[1625167108788,29.8,2103.9,2101.9,2.3439403]
[1625167108789,15.15,2103.8,2101.9,2.3439403]
[1625167108871,0.18424131,2103.7,2101.9,2.3439403]
[1625167108983,9.50788,2103.2,2101.9,7.13091]
[1625167109080,13.76798,2103.2,2101.9,7.13091]
[1625167109333,3.56555,2103.0,2101.6,9.50831]
[1625167109439,3.56555,2103.0,2101.5,35.5649976]
[1625167109579,5.01,2103.0,2101.4,43.6165466]
[1625167109673,0.15,2103.0,2101.4,43.6165466]
[1625167109778,0.04,2102.9,2101.4,43.6165466]
[1625167109933,3.56653,2102.6,2101.4,43.6165466]
[1625167110081,7.13293,2102.0,2101.4,33.1247466]
[1625167110176,10.51403,2102.0,2101.4,33.1247466]
[1625167111041,3.3811,2102.0,2101.4,33.1247466]
[1625167111989,3.3811,2102.0,2101.4,38.1347466]
[1625167112092,3.3811,2102.0,2101.4,33.1247466]
[1625167113224,10.51398,2102.0,2101.4,33.1247466]
[1625167113476,3.3811,2102.0,2101.4,33.1247466]
[1625167113928,3.3811,2102.0,2101.4,5.01]
[1625167114024,1.6541,2102.1,2101.4,15.2105283]
[1625167114123,3.56653,2102.3,2101.4,15.2105283]
[1625167114227,21.1151,2102.7,2101.4,35.3522683]
[1625167114228,24.68116,2102.7,2101.4,35.3522683]
[1625167114428,24.68116,2102.7,2101.4,28.2205283]
[1625167114627,3.56606,2102.7,2101.4,28.2205283]
[1625167114725,9.51029,2102.8,2101.4,28.2205283]
[1625167114829,9.51029,2102.8,2101.5,0.15]
[1625167115182,12.78619,2102.8,2101.4,20.2205283]
[1625167115282,16.3528,2102.8,2101.4,20.2205283]
[1625167115381,7.13287,2102.2,2101.4,20.2205283]
[1625167115523,10.53917,2102.2,2101.4,20.2205283]
[1625167117578,10.53917,2102.2,2101.3,3.721168]
[1625167118821,10.53917,2102.2,2101.3,8.731168]
[1625167118978,10.53917,2102.2,2101.3,3.721168]
[1625167119073,10.53917,2102.2,2101.3,8.731168]
[1625167119697,14.1060242,2102.2,2101.3,8.731168]
[1625167119798,0.12,2102.1,2101.3,5.01]
[1625167120078,0.12,2102.1,2101.0,22.4472719]
[1625167120178,2.076,2102.3,2101.0,30.4472719]
[1625167120277,3.56664,2102.4,2101.0,30.5972719]
[1625167120378,3.56664,2102.4,2101.0,20.4105719]
[1625167120676,3.56664,2102.4,2101.0,35.4105719]
[1625167120780,3.56664,2102.4,2101.0,20.4105719]
[1625167121079,7.13297,2102.1,2101.0,27.5437419]
[1625167121327,7.13297,2102.1,2101.0,19.5437419]
[1625167121778,10.91877,2102.1,2101.0,19.5437419]
[1625167122272,10.91877,2102.1,2101.0,12.4105719]
[1625167122522,10.91877,2102.1,2101.0,12.2605719]
[1625167122523,0.12,2102.0,2101.0,12.2605719]
[1625167122921,3.7858,2102.1,2101.0,12.2605719]
[1625167123121,3.7858,2102.1,2101.0,12.2105719]
[1625167123475,7.13359,2101.9,2101.0,12.2105719]
[1625167124324,11.39049,2101.9,2101.0,12.2105719]
[1625167124728,11.39049,2101.9,2101.0,11.0246469]
[1625167126432,4.2569,2101.9,2101.0,11.0246469]
[1625167127081,4.2569,2101.9,2101.0,5.01]
[1625167127383,4.2569,2101.9,2100.9,14.52009]
[1625167127481,4.2569,2101.9,2100.9,46.2185337]
[1625167128339,9.51111,2102.2,2101.0,29.85]
[1625167128444,2.094,2102.8,2101.0,30.0]
[1625167128536,2.094,2102.8,2101.1,15.01624492]
[1625167128687,13.7143364,2102.9,2101.1,28.02414492]
[1625167128841,13.7143364,2102.9,2101.2,0.22664523]
[1625167128981,13.7143364,2102.9,2101.2,0.16664523]
[1625167129282,13.7143364,2102.9,2101.3,2.45708513]
[1625167129431,23.2218064,2102.9,2101.8,7.13078]
[1625167129531,23.2218064,2102.9,2101.8,12.14078]
[1625167129679,0.04,2102.8,2101.8,16.18658]
[1625167130233,13.0734064,2102.9,2101.8,24.13658]
[1625167130390,3.56509,2103.1,2102.0,29.85]
[1625167130484,10.5728,2103.7,2102.0,44.85]
[1625167130582,10.5728,2103.7,2102.3,9.50378]
[1625167130690,10.5728,2103.7,2102.7,3.46]
[1625167130786,21.2362,2104.0,2102.7,3.46]
[1625167130886,21.2362,2104.0,2102.7,8.47]
[1625167130988,10.6554,2104.0,2102.8,0.15]
[1625167131086,0.04,2103.9,2102.8,0.15]
[1625167131382,10.6554,2104.0,2102.8,0.15]
[1625167131479,10.6554,2104.0,2102.8,3.7123]
[1625167131681,10.6554,2104.0,2102.8,8.7223]
[1625167131834,6.87,2104.1,2102.9,2.74901161]
[1625167132036,6.87,2104.1,2103.0,0.15]
[1625167132233,0.06,2104.0,2103.0,0.15]
[1625167133183,7.12835,2104.1,2103.0,0.15]
[1625167133582,18.25,2104.0,2103.0,0.15]
[1625167133680,18.25,2104.0,2102.5,0.15]
[1625167133876,20.332,2104.0,2102.5,0.15]
[1625167134081,7.13098,2103.3,2102.5,0.15]
[1625167134178,7.13098,2103.3,2102.3,7.13075]
[1625167134405,12.14098,2103.3,2102.3,7.13075]
[1625167134497,7.13098,2103.3,2102.3,7.13075]
[1625167134700,14.51705,2103.7,2102.3,7.13075]
[1625167134848,14.51705,2103.7,2102.3,12.14075]
[1625167134951,14.51705,2103.7,2102.3,7.13075]
[1625167135047,14.51705,2103.7,2102.3,12.14075]
[1625167135722,7.13016,2103.4,2102.3,10.14075]
[1625167135972,0.06,2103.3,2102.3,10.14075]
[1625167136174,12.14016,2103.4,2102.3,10.14075]
[1625167137672,11.99016,2103.4,2102.3,10.14075]
[1625167137985,11.99016,2103.4,2102.3,9.99075]
[1625167138886,11.99016,2103.4,2102.3,4.98075]
[1625167138984,19.99016,2103.4,2102.3,4.98075]
[1625167139087,7.13126,2103.3,2102.3,4.98075]
[1625167139188,7.19126,2103.3,2102.3,4.98075]
[1625167139283,12.20126,2103.3,2102.3,4.98075]
[1625167139388,12.20126,2103.3,2102.2,11.87866]
[1625167139489,0.2,2103.2,2101.8,10.3441]
[1625167139834,13.01,2103.4,2101.8,10.2941]
[1625167139939,8.0,2103.4,2101.8,10.2941]
[1625167140038,13.01,2103.4,2101.8,10.2941]
[1625167140136,5.01,2103.4,2101.8,15.3041]
[1625167140267,5.01,2103.4,2101.9,2.74484494]
[1625167140354,17.535,2103.6,2101.9,2.71366894]
[1625167140503,15.04,2103.5,2101.9,2.71366894]
[1625167140603,15.04,2103.5,2101.9,7.72366894]
[1625167140704,0.2,2103.4,2101.9,7.72366894]
[1625167140809,9.70876,2103.4,2102.0,9.50845]
[1625167140906,2.076,2103.5,2102.0,9.65845]
[1625167141010,5.01,2103.5,2102.0,14.66845]
[1625167141106,5.01,2103.6,2102.0,14.66845]
[1625167141210,5.01,2103.6,2102.1,2.74224694]
[1625167141308,8.0,2103.6,2102.1,2.74224694]
[1625167141461,0.1,2103.5,2102.1,7.90224694]
[1625167142209,7.13093,2103.3,2102.3,9.50714]
[1625167142309,5.13093,2103.3,2102.3,9.50714]
[1625167142476,5.13093,2103.3,2102.3,14.51714]
[1625167142477,10.14093,2103.3,2102.3,14.51714]